fUSD/lending_fUSD_20251225
["ID","MTS","AMOUNT","RATE_DAILY","PERIOD"]
[399781198,1766670647135,-281.85288871,0.00015288,2]
[399781199,1766670647146,-150.0,0.00015288,2]
[399781200,1766670647156,-268.21444293,0.00015288,2]
[399781201,1766670647166,-151.84637891,0.00015288,2]
[399781202,1766670647176,-199.61844687,0.00015288,2]
[399781203,1766670647186,-150.0,0.00015288,2]
[399781204,1766670647200,-150.0,0.00015288,2]
[399781205,1766670647210,-101.42506393,0.00015288,2]
[399781206,1766670647223,-48.57493607,0.00015288,2]
[399781207,1766670647235,-150.0,0.00015288,2]
[399781208,1766670647246,-188.33568841,0.00015288,2]
[399781209,1766670647258,-389.55243689,0.00015288,2]
[399781210,1766670647270,-150.0,0.00015288,2]
[399781211,1766670647280,-178.42877785,0.00015288,2]
[399781212,1766670647297,-13.36282799,0.00015288,2]
[399781213,1766670647308,-150.0,0.00015288,2]
[399781214,1766670647318,-159.52877201,0.00015305,2]
[399781215,1766670647330,-122.3241167,0.00015305,2]
[399781216,1766670647340,-268.21444293,0.00015305,2]
[399781217,1766670647350,-18.82094037,0.00015305,2]
[399781218,1766670647362,-133.02543854,0.00015305,2]
[399781219,1766670647373,-191.97456146,0.00015305,2]
[399781220,1766670647385,-7.64388541,0.00015305,2]
[399781221,1766670647394,-188.33568841,0.00015305,2]
[399781222,1766670647404,-389.55243689,0.00015305,2]
[399781223,1766670647422,-150.0,0.00015312,2]
[399781224,1766670647439,-281.85288871,0.00015322,2]
[399781225,1766670647451,-268.21444293,0.00015322,2]
[399781226,1766670647462,-151.84637891,0.00015322,2]
[399781227,1766670647473,-199.61844687,0.00015322,2]
[399781228,1766670647483,-188.33568841,0.00015322,2]
[399781229,1766670647494,-389.55243689,0.00015322,2]
[399781230,1766670647504,-150.0,0.00015336,2]
[399781231,1766670647514,-150.0,0.00015338,2]
[399781232,1766670647526,-439.9834208,0.00015339,2]
[399781233,1766670647541,-4951.46414392,0.00015339,2]
[399781238,1766670801327,175.22,0.00011611,2]
[399781243,1766671422355,5690.0,0.0002,120]
[399781248,1766671688759,150.0,0.00013871,4]
[399781249,1766671688816,209.80705324,0.00013898,4]
[399781258,1766671759141,-224.63467822,0.00012759,2]
[399781259,1766671759167,-250.0,0.00012809,2]
[399781260,1766671759194,-255.0,0.00012859,2]
[399781261,1766671759218,-1200.0,0.00012859,2]
[399781262,1766671759243,-300.0,0.00012859,2]
[399781263,1766671759267,-1000.0,0.0001286,2]
[399781264,1766671759291,-2173.41696178,0.0001286,2]
[399781271,1766671832525,-424.03221248,0.0001286,2]
[399781273,1766671832536,-291.47,0.0001286,2]
[399781275,1766671832552,-1766.59989974,0.0001286,2]
[399781276,1766671832562,-250.0,0.00012894,2]
[399781278,1766671832571,-1200.0,0.00013129,2]
[399781280,1766671832581,-300.0,0.00013129,2]
[399781281,1766671832591,-578.20924308,0.0001313,2]
[399781283,1766671832600,-200.0,0.0001313,2]
[399781285,1766671832610,-207.4,0.0001313,2]
[399781287,1766671832620,-215.0738,0.0001313,2]
[399781289,1766671832630,-223.0315306,0.0001313,2]
[399781291,1766671832640,-231.28369723,0.0001313,2]
[399781293,1766671832650,-239.84119403,0.0001313,2]
[399781295,1766671832660,-714.43325788,0.00013345,2]
[399781299,1766671832680,-9266.39674212,0.00013345,2]
[399781301,1766671832689,-224.63467821,0.00013398,2]
[399781303,1766671832704,-1000.0,0.00013405,2]
[399781305,1766671832714,-1000.0,0.00013405,2]
[399781306,1766671832724,-1000.0,0.00013405,2]
[399781307,1766671832734,-1000.0,0.00013405,2]
[399781308,1766671832745,-796.056,0.00013405,2]
[399781309,1766671832755,-1000.0,0.00013406,2]
[399781310,1766671832765,-1000.0,0.00013406,2]
[399781311,1766671832775,-1000.0,0.00013406,2]
[399781312,1766671832784,-1000.0,0.00013406,2]
[399781313,1766671832795,-1000.0,0.00013406,2]
[399781314,1766671832806,-916.272,0.00013406,2]
[399781315,1766671832816,-507.31246157,0.00013485,2]
[399781316,1766671832827,-1600.0,0.00013485,2]
[399781317,1766671832837,-500.0,0.00013698,2]
[399781318,1766671832847,-200.0,0.00013758,2]
[399781319,1766671832858,-166.66,0.00013794,2]
[399781320,1766671832871,-150.0,0.00013871,2]
[399781321,1766671832881,-322.6107,0.00013886,2]
[399781322,1766671832892,-1500.0,0.00013894,2]
[399781323,1766671832903,-9999.99,0.00013894,2]
[399781324,1766671832913,-150.99,0.00013894,2]
[399781325,1766671832923,-250.0,0.00014035,2]
[399781326,1766671832934,-300.0,0.00014035,2]
[399781327,1766671832944,-300.0,0.00014035,2]
[399781328,1766671832954,-300.0,0.00014035,2]
[399781329,1766671832964,-300.0,0.00014035,2]
[399781330,1766671832974,-300.0,0.00014035,2]
[399781331,1766671832984,-600.0,0.00014035,2]
[399781332,1766671832994,-600.0,0.00014035,2]
[399781333,1766671833005,-600.0,0.00014035,2]
[399781334,1766671833015,-600.0,0.00014035,2]
[399781335,1766671833026,-600.0,0.00014035,2]
[399781336,1766671833036,-2500.0,0.00014035,2]
[399781337,1766671833046,-2500.0,0.00014035,2]
[399781338,1766671833057,-2500.0,0.00014035,2]
[399781339,1766671833067,-2500.0,0.00014035,2]
[399781340,1766671833083,-2500.0,0.00014035,2]
[399781341,1766671833093,-195.0,0.00014035,2]
[399781342,1766671833104,-224.63467821,0.00014036,2]
[399781343,1766671833115,-166.66,0.00014085,2]
[399781344,1766671833125,-229.81,0.000141,2]
[399781345,1766671833136,-571.12088084,0.00014135,2]
[399781346,1766671833146,-173.80146896,0.00014135,2]
[399781347,1766671833156,-163.9707158,0.00014135,2]
[399781348,1766671833166,-207.4,0.00014136,2]
[399781349,1766671833176,-500.0,0.00014136,2]
[399781350,1766671833187,-1500.0,0.00014136,2]
[399781351,1766671833198,-500.0,0.00014136,2]
[399781352,1766671833209,-1500.0,0.00014136,2]
[399781353,1766671833219,-500.0,0.00014136,2]
[399781354,1766671833229,-1051.9805281,0.00014136,2]
[399781355,1766671833240,-500.0,0.00014136,2]
[399781356,1766671833250,-500.0,0.00014136,2]
[399781357,1766671833261,-500.0,0.00014136,2]
[399781358,1766671833272,-574.12855637,0.00014136,2]
[399781359,1766671833282,-500.0,0.00014136,2]
[399781360,1766671833293,-500.0,0.00014136,2]
[399781361,1766671833303,-500.0,0.00014136,2]
[399781362,1766671833313,-500.0,0.00014136,2]
[399781363,1766671833324,-500.0,0.00014136,2]
[399781364,1766671833334,-500.0,0.00014136,2]
[399781365,1766671833345,-500.0,0.00014136,2]
[399781366,1766671833358,-500.0,0.00014136,2]
[399781367,1766671833368,-500.0,0.00014136,2]
[399781368,1766671833379,-500.0,0.00014136,2]
[399781369,1766671833389,-500.0,0.00014136,2]
[399781370,1766671833399,-500.0,0.00014136,2]
[399781371,1766671833410,-500.0,0.00014136,2]
[399781372,1766671833419,-500.0,0.00014136,2]
[399781373,1766671833429,-500.0,0.00014136,2]
[399781374,1766671833444,-500.0,0.00014136,2]
[399781375,1766671833454,-620.0,0.00014136,2]
[399781376,1766671833464,-151.0,0.00014136,2]
[399781377,1766671833474,-151.0,0.00014136,2]
[399781378,1766671833484,-250.0,0.00014136,2]
[399781379,1766671833494,-151.0,0.00014136,2]
[399781380,1766671833504,-151.0,0.00014136,2]
[399781381,1766671833515,-250.0,0.00014136,2]
[399781382,1766671833525,-151.0,0.00014136,2]
[399781383,1766671833535,-250.0,0.00014136,2]
[399781384,1766671833544,-151.0,0.00014136,2]
[399781385,1766671833554,-151.0,0.00014136,2]
[399781386,1766671833564,-151.0,0.00014136,2]
[399781387,1766671833575,-151.0,0.00014136,2]
[399781388,1766671833585,-151.0,0.00014136,2]
[399781389,1766671833595,-151.0,0.00014136,2]
[399781390,1766671833605,-227.05,0.00014143,2]
[399781391,1766671833615,-315.146,0.00014144,2]
[399781392,1766671833625,-195.0,0.00014145,2]
[399781393,1766671833636,-195.0,0.00014145,2]
[399781394,1766671833650,-250.0,0.00014146,2]
[399781395,1766671833660,-195.0,0.00014146,2]
[399781396,1766671833670,-166.66,0.00014375,2]
[399781397,1766671833680,-227.05,0.00014417,2]
[399781398,1766671833690,-1680.0,0.00014442,2]
[399781399,1766671833701,-1340.62,0.00014442,2]
[399781400,1766671833711,-2500.0,0.00014477,2]
[399781401,1766671833721,-8562.13619494,0.00014565,2]
[399781402,1766671833731,-3544.90424132,0.00014565,2]
[399781403,1766671833740,-340.74950579,0.00014565,2]
[399781404,1766671833750,-5456.84,0.00014566,2]
[399781405,1766671833760,-150.0,0.00014574,2]
[399781406,1766671833770,-151.0,0.00014574,2]
[399781407,1766671833779,-500.0,0.00014576,2]
[399781408,1766671833790,-500.0,0.00014576,2]
[399781409,1766671833800,-500.0,0.00014576,2]
[399781410,1766671833810,-500.0,0.00014576,2]
[399781411,1766671833819,-500.0,0.00014576,2]
[399781412,1766671833832,-500.0,0.00014576,2]
[399781413,1766671833842,-184845.47040993,0.00014577,2]
[399781414,1766671833857,-2803.63135094,0.00014577,2]
[399781415,1766671833872,-8744.97097699,0.00014577,2]
[399781416,1766671833918,-1493.83764128,0.00014577,2]
[399781417,1766671833931,-574.96778752,0.00014577,2]
[399781422,1766671838344,-300.99714018,0.00013405,2]
[399781423,1766671838358,-199.00285982,0.00013405,2]
[399781424,1766671838368,-1978.62532763,0.00014577,2]
[399781425,1766671838406,-1174.05132289,0.00014577,2]
[399781426,1766671838419,-6549.63245314,0.00014577,2]
[399781427,1766671838431,-2377.15544974,0.00014577,2]
[399781428,1766671838446,-1126.46759007,0.00014577,2]
[399781429,1766671838458,-485.39238183,0.00014577,2]
[399781438,1766671838696,-13390.58815201,0.00014577,2]
[399781441,1766671838711,-8355.461751,0.00014577,2]
[399781443,1766671838726,-36008.590824,0.00014577,2]
[399781445,1766671838738,-290.07000898,0.00014577,2]
[399781467,1766671840431,-369.0,0.00014577,2]
[399781468,1766671840487,-5431.42356605,0.00014577,2]
[399781469,1766671840500,-3928.22423888,0.00014577,2]
[399781470,1766671840513,-21718.75184512,0.00014577,2]
[399781471,1766671840545,-4740.32327929,0.00014577,2]
[399781472,1766671840558,-1310.89922344,0.00014577,2]
[399781473,1766671840569,-5234.16385438,0.00014577,2]
[399781474,1766671840606,-1098.41877712,0.00014577,2]
[399781475,1766671840618,-756.76,0.00014577,2]
[399781476,1766671840772,-691.10317124,0.00014577,2]
[399781480,1766671843411,-407.6376526,0.00013405,2]
[399781481,1766671843422,-1000.0,0.00014477,2]
[399781482,1766671843431,-10.0329774,0.00014577,2]
[399781483,1766671843444,-1573.28442931,0.00014577,2]
[399781484,1766671843467,-9672.77947436,0.00014577,2]
[399781485,1766671843525,-350492.00000001,0.00014577,2]
[399781489,1766671846352,-945.89473246,0.00014577,2]
[399781490,1766671846365,-248300.55589445,0.00014577,2]
[399781491,1766671846520,-58355.94153518,0.00014577,2]
[399781492,1766671846532,-6790.19809265,0.00014577,2]
[399781493,1766671846579,-8381.33148071,0.00014577,2]
[399781494,1766671846589,-166.66,0.00014665,2]
[399781495,1766671846599,-595.37131296,0.00014684,2]
[399781496,1766671846608,-227.05,0.00014691,2]
[399781497,1766671846617,-3590.94841093,0.00014824,2]
[399781498,1766671846629,-4971.18778399,0.00014824,2]
[399781499,1766671846639,-3544.90424124,0.00014824,2]
[399781500,1766671846649,-166.66,0.00014956,2]
[399781501,1766671846659,-227.05,0.00014965,2]
[399781502,1766671846670,-224.2608279,0.00014987,2]
[399781503,1766671846680,-8562.13619492,0.00015084,2]
[399781504,1766671846690,-3544.90424124,0.00015084,2]
[399781505,1766671846699,-151.0,0.00015133,2]
[399781506,1766671846711,-1600.0,0.00015171,2]
[399781507,1766671846720,-151.0,0.00015209,2]
[399781508,1766671846730,-12210.0,0.00015212,2]
[399781509,1766671846739,-200.0,0.00015215,2]
[399781510,1766671846749,-200.0,0.00015216,2]
[399781511,1766671846758,-200.0,0.00015216,2]
[399781512,1766671846769,-617.40005154,0.00015232,2]
[399781513,1766671846778,-227.09,0.00015239,2]
[399781514,1766671846788,-166.66,0.00015246,2]
[399781515,1766671846798,-334.5472959,0.00015255,2]
[399781516,1766671846807,-543.73782717,0.00015286,2]
[399781517,1766671846817,-150.0,0.00015288,2]
[399781518,1766671846827,-260.16800964,0.00015288,2]
[399781519,1766671846837,-157.79098754,0.00015288,2]
[399781520,1766671846846,-295.89730205,0.00015288,2]
[399781521,1766671846856,-400.36586378,0.00015288,2]
[399781522,1766671846869,-191.68561775,0.00015288,2]
[399781523,1766671846879,-205.62989346,0.00015288,2]
[399781524,1766671846889,-150.0,0.00015288,2]
[399781525,1766671846899,-150.0,0.00015288,2]
[399781526,1766671846912,-150.0,0.00015288,2]
[399781527,1766671846922,-150.0,0.00015288,2]
[399781528,1766671846933,-150.0,0.00015288,2]
[399781529,1766671846944,-150.0,0.00015288,2]
[399781530,1766671846954,-150.0,0.00015288,2]
[399781531,1766671846965,-150.0,0.00015288,2]
[399781532,1766671846975,-15540.9758503,0.00015296,2]
[399781533,1766671846985,-4241.4000576,0.00015296,2]
[399781534,1766671846995,-440.9765651,0.00015296,2]
[399781559,1766671896540,171.51,7.241e-05,2]
[399781562,1766672423646,999.0,0.0001349,3]
[399781570,1766672801150,-501.74192587,0.00013476,2]
[399781592,1766673031420,-3240.0,0.00013352,2]
[399781593,1766673031431,-150.0,0.00013393,2]
[399781594,1766673031441,-734.39,0.00013408,2]
[399781595,1766673031452,-250.0,0.00013442,2]
[399781596,1766673031462,-250.0,0.00013466,2]
[399781597,1766673031472,-1200.0,0.00013475,2]
[399781598,1766673031482,-300.0,0.00013475,2]
[399781599,1766673031493,-4705.06807413,0.00013476,2]
[399781600,1766673031503,-150.0,0.00013478,2]
[399781601,1766673031514,-158.43,0.00013491,2]
[399781602,1766673031524,-578.20924308,0.00013508,2]
[399781603,1766673031535,-200.0,0.00013508,2]
[399781604,1766673031545,-207.4,0.00013508,2]
[399781605,1766673031555,-215.0738,0.00013508,2]
[399781606,1766673031565,-223.0315306,0.00013508,2]
[399781607,1766673031575,-231.28369723,0.00013508,2]
[399781608,1766673031585,-239.84119403,0.00013508,2]
[399781609,1766673031596,-248.71531821,0.00013508,2]
[399781610,1766673031605,-257.91778498,0.00013508,2]
[399781611,1766673031615,-267.46074303,0.00013508,2]
[399781612,1766673031625,-376.28,0.00013508,2]
[399781613,1766673031636,-200.0,0.00013699,2]
[399781614,1766673031646,-1522.02971995,0.00013699,2]
[399781615,1766673031656,-376.28,0.00013782,2]
[399781617,1766673031666,-150.0,0.00013981,2]
[399781619,1766673031675,-4510.91438238,0.00013982,2]
[399781621,1766673031687,-1349.61288932,0.00013982,2]
[399781623,1766673031699,-4201.65523545,0.00013982,2]
[399781625,1766673031711,-782.76857672,0.00013982,2]
[399781628,1766673031738,-1422.63899574,0.00013982,2]
[399781632,1766673031764,-456.84069987,0.00013982,2]
[399781637,1766673037498,-150.0,0.00013809,2]
[399781638,1766673037514,-150.0,0.00013809,2]
[399781639,1766673037525,-150.0,0.00013836,2]
[399781640,1766673037535,-150.0,0.00013836,2]
[399781641,1766673037546,-200.0,0.00013864,2]
[399781642,1766673037556,-200.0,0.00013864,2]
[399781643,1766673037566,-399.78461659,0.00013981,2]
[399781644,1766673037577,-245.59649034,0.00013981,2]
[399781645,1766673037587,-8354.61889307,0.00013982,2]
[399781646,1766673037600,-479.84180245,0.00013982,2]
[399781647,1766673037649,-13219.07815201,0.00013982,2]
[399781648,1766673037664,-8355.461751,0.00013982,2]
[399781649,1766673037679,-36008.590824,0.00013982,2]
[399781650,1766673037699,-19845.24128045,0.00013982,2]
[399781651,1766673037713,-5778.20325848,0.00013982,2]
[399781707,1766673039579,-7910.68411064,0.00013982,2]
[399781708,1766673039592,-523.34287504,0.00013982,2]
[399781709,1766673039605,-132892.10889227,0.00013982,2]
[399781710,1766673039617,-763.45759774,0.00013982,2]
[399781711,1766673039638,-356.68236483,0.00013982,2]
[399781712,1766673039651,-644.38,0.00013982,2]
[399781713,1766673039664,-396.71618048,0.00013982,2]
[399781714,1766673039812,-751747.16123806,0.00013982,2]
[399781715,1766673039822,-1500.0,0.00014,2]
[399781716,1766673039833,-376.28,0.00014056,2]
[399781717,1766673039844,-507.51866214,0.00014084,2]
[399781718,1766673039854,-733.92,0.00014084,2]
[399781719,1766673039863,-2212.12,0.00014084,2]
[399781720,1766673039874,-9999.99,0.00014084,2]
[399781721,1766673039883,-150.99,0.00014084,2]
[399781722,1766673039894,-299.99,0.00014084,2]
[399781723,1766673039904,-9999.99,0.00014084,2]
[399781724,1766673039914,-6928.99380159,0.00014095,2]
[399781725,1766673039924,-322.6107,0.00014095,2]
[399781726,1766673039935,-277.35679052,0.00014095,2]
[399781727,1766673039945,-5659.554,0.00014111,2]
[399781728,1766673039954,-322.403,0.00014111,2]
[399781729,1766673039965,-2500.0,0.00014277,2]
[399781730,1766673039976,-376.28,0.0001433,2]
[399781731,1766673039986,-197.72643171,0.00014342,2]
[399781732,1766673039997,-3971.30345795,0.00014343,2]
[399781733,1766673040007,-500.0,0.0001436,2]
[399781734,1766673040018,-151.0,0.0001436,2]
[399781735,1766673040029,-468.52172957,0.0001436,2]
[399781736,1766673040039,-500.0,0.0001436,2]
[399781737,1766673040049,-500.0,0.0001436,2]
[399781738,1766673040060,-500.0,0.0001436,2]
[399781739,1766673040070,-500.0,0.0001436,2]
[399781740,1766673040081,-151.0,0.0001436,2]
[399781741,1766673040091,-500.0,0.0001436,2]
[399781742,1766673040101,-500.0,0.0001436,2]
[399781743,1766673040112,-500.0,0.0001436,2]
[399781744,1766673040123,-500.0,0.0001436,2]
[399781745,1766673040133,-151.0,0.0001436,2]
[399781746,1766673040143,-500.0,0.0001436,2]
[399781747,1766673040154,-500.0,0.0001436,2]
[399781748,1766673040165,-500.0,0.0001436,2]
[399781749,1766673040175,-151.0,0.0001436,2]
[399781750,1766673040186,-615.40475298,0.0001436,2]
[399781751,1766673040197,-500.0,0.0001436,2]
[399781752,1766673040207,-500.0,0.0001436,2]
[399781753,1766673040218,-500.0,0.0001436,2]
[399781754,1766673040228,-151.0,0.0001436,2]
[399781755,1766673040238,-500.0,0.0001436,2]
[399781756,1766673040249,-500.0,0.0001436,2]
[399781757,1766673040259,-500.0,0.0001436,2]
[399781758,1766673040270,-151.0,0.0001436,2]
[399781759,1766673040281,-574.12855637,0.0001436,2]
[399781760,1766673040291,-500.0,0.0001436,2]
[399781761,1766673040301,-500.0,0.0001436,2]
[399781762,1766673040311,-500.0,0.0001436,2]
[399781763,1766673040322,-151.0,0.0001436,2]
[399781764,1766673040332,-500.0,0.0001436,2]
[399781765,1766673040342,-500.0,0.0001436,2]
[399781766,1766673040352,-500.0,0.0001436,2]
[399781767,1766673040362,-151.0,0.0001436,2]
[399781768,1766673040372,-500.0,0.0001436,2]
[399781769,1766673040382,-500.0,0.0001436,2]
[399781770,1766673040392,-500.0,0.0001436,2]
[399781771,1766673040402,-151.0,0.0001436,2]
[399781772,1766673040411,-207.4,0.0001436,2]
[399781773,1766673040422,-500.0,0.0001436,2]
[399781774,1766673040432,-500.0,0.0001436,2]
[399781775,1766673040442,-500.0,0.0001436,2]
[399781776,1766673040451,-500.0,0.0001436,2]
[399781777,1766673040461,-151.0,0.0001436,2]
[399781778,1766673040470,-626.72929824,0.0001436,2]
[399781779,1766673040480,-500.0,0.0001436,2]
[399781780,1766673040490,-500.0,0.0001436,2]
[399781781,1766673040500,-500.0,0.0001436,2]
[399781782,1766673040510,-151.0,0.0001436,2]
[399781783,1766673040520,-500.0,0.0001436,2]
[399781784,1766673040530,-283.18901002,0.0001436,2]
[399781785,1766673040540,-151.0,0.0001436,2]
[399781786,1766673040551,-1500.0,0.0001436,2]
[399781787,1766673040561,-1000.0,0.0001436,2]
[399781788,1766673040571,-200.0,0.0001436,2]
[399781789,1766673040581,-200.0,0.0001436,2]
[399781790,1766673040592,-250.0,0.0001436,2]
[399781791,1766673040602,-250.0,0.0001436,2]
[399781792,1766673040612,-250.0,0.0001436,2]
[399781793,1766673040622,-250.0,0.0001436,2]
[399781794,1766673040632,-250.0,0.0001436,2]
[399781795,1766673040642,-250.0,0.0001436,2]
[399781796,1766673040651,-250.0,0.0001436,2]
[399781797,1766673040662,-250.0,0.0001436,2]
[399781798,1766673040672,-250.0,0.0001436,2]
[399781799,1766673040682,-250.0,0.0001436,2]
[399781800,1766673040692,-250.0,0.0001436,2]
[399781801,1766673040702,-250.0,0.0001436,2]
[399781802,1766673040715,-250.0,0.0001436,2]
[399781803,1766673040724,-250.0,0.0001436,2]
[399781804,1766673040734,-620.0,0.0001436,2]
[399781805,1766673040744,-250.0,0.0001436,2]
[399781806,1766673040755,-250.0,0.0001436,2]
[399781807,1766673040765,-250.0,0.0001436,2]
[399781808,1766673040776,-250.0,0.0001436,2]
[399781809,1766673040786,-250.0,0.0001436,2]
[399781810,1766673040796,-260.99352058,0.0001436,2]
[399781811,1766673040806,-250.0,0.0001436,2]
[399781812,1766673040816,-250.0,0.0001436,2]
[399781813,1766673040826,-250.0,0.0001436,2]
[399781814,1766673040836,-250.0,0.0001436,2]
[399781815,1766673040847,-1500.0,0.0001436,2]
[399781816,1766673040857,-250.0,0.0001436,2]
[399781817,1766673040867,-1500.0,0.0001436,2]
[399781818,1766673040877,-250.0,0.0001436,2]
[399781819,1766673040887,-1500.0,0.0001436,2]
[399781820,1766673040898,-1500.0,0.0001436,2]
[399781821,1766673040908,-1500.0,0.0001436,2]
[399781822,1766673040919,-1500.0,0.0001436,2]
[399781823,1766673040929,-1500.0,0.0001436,2]
[399781824,1766673040939,-1500.0,0.0001436,2]
[399781825,1766673040950,-1500.0,0.0001436,2]
[399781826,1766673040960,-1500.0,0.0001436,2]
[399781827,1766673040970,-1500.0,0.0001436,2]
[399781828,1766673040980,-151.0,0.00014374,2]
[399781829,1766673040991,-500.0,0.00014376,2]
[399781830,1766673041001,-500.0,0.00014376,2]
[399781831,1766673041011,-500.0,0.00014376,2]
[399781832,1766673041021,-500.0,0.00014376,2]
[399781833,1766673041031,-500.0,0.00014376,2]
[399781834,1766673041042,-500.0,0.00014376,2]
[399781835,1766673041052,-500.0,0.00014376,2]
[399781836,1766673041063,-500.0,0.00014376,2]
[399781837,1766673041072,-500.0,0.00014376,2]
[399781838,1766673041082,-500.0,0.00014376,2]
[399781839,1766673041093,-500.0,0.00014376,2]
[399781840,1766673041103,-399.26186122,0.00014376,2]
[399781841,1766673041114,-500.0,0.00014376,2]
[399781842,1766673041125,-500.0,0.00014376,2]
[399781843,1766673041135,-500.0,0.00014376,2]
[399781844,1766673041146,-500.0,0.00014376,2]
[399781845,1766673041156,-500.0,0.00014376,2]
[399781846,1766673041166,-500.0,0.00014376,2]
[399781847,1766673041176,-507.55739974,0.00014376,2]
[399781848,1766673041187,-227.1663372,0.00014383,2]
[399781849,1766673041198,-171.51,0.00014483,2]
[399781850,1766673041209,-194.46,0.00014545,2]
[399781851,1766673041219,-1632.6274134,0.00014584,2]
[399781852,1766673041230,-376.32,0.00014604,2]
[399781853,1766673041241,-151.0,0.00014623,2]
[399781854,1766673041252,-935.0333539,0.00014625,2]
[399781855,1766673041262,-30827.8626759,0.00014626,2]
[399781856,1766673041273,-4235.9140009,0.00014626,2]
[399781857,1766673041284,-3332.0313076,0.00014626,2]
[399781858,1766673041295,-1157.5511488,0.00014626,2]
[399781859,1766673041306,-3971.30345791,0.00014627,2]
[399781860,1766673041317,-362.49188478,0.00014634,2]
[399781861,1766673041327,-9767.0,0.00014644,2]
[399781862,1766673041337,-151.73655621,0.00014687,2]
[399781863,1766673041347,-1489.47687703,0.00014687,4]
[399781864,1766673041357,-250.0,0.00014749,2]
[399781865,1766673041368,-600.0,0.00014749,2]
[399781866,1766673041378,-600.0,0.00014749,2]
[399781867,1766673041388,-600.0,0.00014749,2]
[399781868,1766673041398,-600.0,0.00014749,2]
[399781869,1766673041408,-600.0,0.00014749,2]
[399781870,1766673041418,-300.0,0.00014749,2]
[399781871,1766673041428,-300.0,0.00014749,2]
[399781872,1766673041438,-300.0,0.00014749,2]
[399781873,1766673041449,-300.0,0.00014749,2]
[399781874,1766673041459,-300.0,0.00014749,2]
[399781875,1766673041470,-2500.0,0.00014749,2]
[399781876,1766673041480,-2500.0,0.00014749,2]
[399781877,1766673041489,-2500.0,0.00014749,2]
[399781878,1766673041500,-2500.0,0.00014749,2]
[399781879,1766673041509,-1101.07385604,0.00014749,2]
[399781880,1766673041520,-195.0,0.00014749,2]
[399781881,1766673041530,-195.0,0.00014749,2]
[399781882,1766673041541,-1680.0,0.00014823,2]
[399781883,1766673041551,-195.0,0.00014824,2]
[399781884,1766673041561,-195.0,0.00014824,2]
[399781885,1766673041571,-195.0,0.00014824,2]
[399781886,1766673041582,-595.37131296,0.00014908,2]
[399781887,1766673041592,-6294.33575279,0.0001491,2]
[399781888,1766673041602,-3971.30345791,0.00014911,2]
[399781889,1766673041613,-188.55950753,0.00015008,2]
[399781890,1766673041623,-151.0,0.00015015,2]
[399781891,1766673041633,-151.0,0.00015015,2]
[399781892,1766673041643,-604.65,0.00015068,2]
[399781893,1766673041653,-255.0,0.00015099,2]
[399781894,1766673041663,-227.16633718,0.0001512,2]
[399781895,1766673041674,-158.43,0.00015178,2]
[399781896,1766673041684,-6294.33575279,0.00015195,2]
[399781897,1766673041694,-3971.30345791,0.00015195,2]
[399781898,1766673041705,-200.0,0.00015216,2]
[399781899,1766673041718,-183.38649304,0.00015288,2]
[399781900,1766673041728,-257.56632954,0.00015288,2]
[399781901,1766673041739,-156.21307766,0.00015288,2]
[399781902,1766673041749,-292.93832902,0.00015288,2]
[399781903,1766673041761,-203.57359453,0.00015288,2]
[399781904,1766673041771,-396.36220514,0.00015288,2]
[399781905,1766673041782,-150.0,0.00015288,2]
[399781906,1766673041794,-189.76876158,0.00015288,2]